bitfinex/quotes_ETHUSD_20260208
["timestamp","ask_amount","ask_price","bid_price","bid_amount"]
[1770579689854,1.01502657,2119.3,2119.1,0.001]
[1770579690054,2.11341325,2119.4,2119.1,0.001]
[1770579690250,1.01504067,2119.3,2119.1,0.001]
[1770579690444,2.11341325,2119.4,2119.1,0.001]
[1770579690645,1.01485727,2119.3,2119.1,0.001]
[1770579690944,2.11341325,2119.4,2119.1,0.001]
[1770579691126,1.01485731,2119.3,2119.1,0.001]
[1770579691322,2.11341325,2119.4,2119.1,0.001]
[1770579691521,1.01530335,2119.3,2119.1,0.001]
[1770579691775,2.11341325,2119.4,2119.1,0.001]
[1770579692069,1.01530319,2119.3,2119.1,0.001]
[1770579692280,3.297,2119.7,2119.1,0.001]
[1770579692281,2.54129355,2120.4,2119.2,0.90558304]
[1770579692460,2.1130032,2120.2,2119.2,0.90558304]
[1770579693260,2.16497334,2120.2,2119.2,0.90558304]
[1770579693952,4.71681824,2120.1,2119.3,1.17963478]
[1770579694138,4.71620371,2120.4,2119.5,0.90558304]
[1770579694139,2.11290396,2120.4,2119.5,0.90558304]
[1770579694344,1.17913902,2120.2,2119.5,0.90558304]
[1770579694654,0.93383413,2120.1,2119.3,1.17963478]
[1770579695041,0.05197014,2120.2,2119.3,2.08521782]
[1770579695248,1.17907952,2120.3,2119.4,0.90558304]
[1770579695744,1.17906411,2120.4,2119.4,0.90558304]
[1770579695943,1.17902282,2120.4,2119.5,1.17952347]
[1770579696166,2.11285695,2120.4,2119.5,2.08510651]
[1770579698067,0.93383413,2120.2,2119.5,1.17952347]
[1770579698241,1.17918966,2120.1,2119.4,1.17957912]
[1770579699490,1.17918966,2120.1,2119.6,0.001]
[1770579699789,0.0011,2119.8,2119.6,0.001]
[1770579707586,0.0011,2120.0,2119.7,0.96993392]
[1770579707904,1.04193543,2120.5,2119.7,0.96993392]
[1770579708070,2.00603164,2120.4,2119.6,0.001]
[1770579708268,1.01606635,2120.3,2119.6,0.001]
[1770579708470,0.98996529,2120.0,2119.6,0.001]
[1770579708802,1.01606635,2119.9,2119.6,0.001]
[1770579709363,0.0011,2119.8,2119.6,0.001]
[1770579710187,0.0011,2119.7,2119.6,0.001]
[1770579710494,0.0011,2119.8,2119.6,0.001]
[1770579713598,0.0022,2119.8,2119.6,0.001]
[1770579714583,0.0011,2119.8,2119.6,0.001]
[1770579715593,0.0011,2119.7,2119.6,0.001]
[1770579716801,0.0011,2119.8,2119.6,0.001]
[1770579716802,0.0011,2119.8,2119.6,0.97093392]
[1770579716982,0.0011,2119.7,2119.6,0.001]
[1770579718299,2.00675638,2119.7,2119.4,0.001]
[1770579718501,0.98996529,2119.7,2119.4,0.001]
[1770579718798,0.98996529,2119.5,2119.4,0.001]
[1770579718992,2.0067803,2119.5,2119.4,0.001]
[1770579719502,1.01681501,2119.5,2119.4,0.001]
[1770579719897,1.01681501,2119.6,2119.4,0.001]
[1770579720096,1.01681501,2119.5,2119.4,0.001]
[1770579720906,0.98996529,2119.4,2119.1,0.001]
[1770579721081,2.0067803,2119.3,2119.1,0.001]
[1770579721280,1.01681501,2119.2,2119.1,0.001]
[1770579723810,0.98996529,2119.1,2118.9,0.001]
[1770579724102,1.01681501,2119.0,2118.9,0.001]
[1770579724606,3.18658209,2119.0,2118.9,0.001]
[1770579724806,0.98996529,2118.9,2118.6,0.001]
[1770579724977,2.1966168,2119.0,2118.4,0.001]
[1770579724978,0.98996529,2118.7,2118.4,0.001]
[1770579725180,1.0167652,2118.6,2118.4,0.001]
[1770579726124,1.17980179,2119.0,2118.4,0.001]
[1770579726426,1.01479894,2118.9,2118.4,0.001]
[1770579726577,1.01479894,2118.8,2118.4,0.001]
[1770579726778,1.17980317,2119.0,2118.4,0.001]
[1770579726982,1.01479257,2118.9,2118.4,0.001]
[1770579727179,1.17980317,2119.0,2118.4,0.001]
[1770579727380,1.0143242,2118.9,2118.4,0.001]
[1770579727588,1.0143242,2118.8,2118.4,0.001]
[1770579727793,1.17980317,2119.0,2118.4,0.001]
[1770579728005,1.01433133,2118.9,2118.4,0.001]
[1770579728193,1.17980317,2119.0,2118.4,0.001]
[1770579728394,1.01390046,2118.9,2118.4,0.001]
[1770579728688,1.17980317,2119.0,2118.4,0.001]
[1770579729011,2.1937667,2118.9,2118.4,0.001]
[1770579729306,1.17986753,2118.9,2118.4,0.001]
[1770579730304,2.16953005,2119.5,2118.4,0.97093392]
[1770579730514,1.0651223,2119.4,2118.4,0.97093392]
[1770579730690,1.01315216,2119.3,2118.4,0.97093392]
[1770579730893,1.01315216,2119.2,2118.4,0.97093392]
[1770579731216,1.2315719,2119.4,2118.5,2.15001416]
[1770579731415,1.01310921,2119.3,2118.5,2.15001416]
[1770579731583,1.01310921,2119.2,2118.5,2.15001416]
[1770579731787,1.2315719,2119.4,2118.5,2.15001416]
[1770579732005,1.01310861,2119.3,2118.5,2.15001416]
[1770579732209,1.01310861,2119.2,2118.5,2.15001416]
[1770579732403,1.2315719,2119.4,2118.5,2.15001416]
[1770579732714,1.17952586,2119.5,2118.6,0.96993392]
[1770579733026,2.24462655,2119.4,2118.7,1.17996884]
[1770579733184,1.23155701,2119.4,2118.7,1.17996884]
[1770579733386,0.98996529,2119.3,2118.6,1.17998361]
[1770579736716,0.05197014,2119.1,2118.5,1.18008024]
[1770579739015,2.16193215,2119.1,2118.6,0.001]
[1770579739533,0.0011,2118.9,2118.6,0.001]
[1770579744632,4.77031757,2119.4,2118.6,0.001]
[1770579744633,1.179511,2119.6,2118.8,0.95244894]
[1770579744814,0.9301851,2119.4,2118.6,0.95344894]
[1770579745017,1.01545895,2119.3,2118.6,0.95344894]
[1770579745219,0.9301851,2119.4,2118.6,0.95344894]
[1770579745530,1.01579112,2119.3,2118.6,0.95344894]
[1770579745717,0.9301851,2119.4,2118.6,0.95344894]
[1770579745918,1.01579058,2119.3,2118.6,0.95344894]
[1770579746119,0.9301851,2119.4,2118.7,1.17996884]
[1770579746120,2.10981801,2119.4,2118.7,1.17996884]
[1770579746320,1.01617193,2119.3,2118.7,1.17996884]
[1770579746527,2.10981801,2119.4,2118.7,1.17996884]
[1770579746528,1.01617193,2119.2,2118.7,1.17996884]
[1770579746840,2.10981801,2119.4,2118.7,1.17996884]
[1770579747041,1.01624107,2119.3,2118.7,1.17996884]
[1770579747242,1.01624107,2119.2,2118.7,1.17996884]
[1770579747536,2.10981801,2119.4,2118.7,1.17996884]
[1770579747842,1.01672258,2119.3,2118.7,2.13241778]
[1770579748136,1.01672258,2119.2,2118.7,2.13241778]
[1770579748333,1.01672258,2119.1,2118.7,2.13241778]
[1770579748541,2.10981801,2119.4,2118.7,2.13241778]
[1770579748724,1.01729931,2119.3,2118.7,2.13241778]
[1770579748924,1.01729931,2119.2,2118.7,2.13241778]
[1770579749127,1.01729931,2119.1,2118.7,2.13241778]
[1770579749341,3.46603564,2119.6,2118.8,0.95244894]
[1770579749645,1.0175838,2119.5,2118.8,0.95244894]
[1770579749843,1.0175838,2119.4,2118.8,0.95244894]
[1770579750017,1.0175838,2119.3,2118.8,0.95244894]
[1770579750218,0.9855397,2119.2,2118.8,0.95244894]
[1770579750547,1.74779463,2119.5,2118.9,1.17985747]
[1770579751119,0.05197014,2119.5,2118.9,1.17985747]
[1770579751321,1.74779463,2119.5,2118.9,1.17985747]
[1770579751525,0.0011,2119.0,2118.9,1.17985747]
[1770579751949,0.0011,2119.2,2118.9,2.13230641]
[1770579752253,0.0011,2119.2,2119.0,0.95244894]
[1770579753249,0.0011,2119.2,2119.0,2.13221496]
[1770579755126,0.0011,2119.2,2119.1,0.95244894]
[1770579755344,0.0011,2119.2,2119.1,2.13219505]
[1770579755947,1.69692449,2119.8,2119.1,1.17974611]
[1770579756147,0.0012,2119.7,2119.2,0.95244894]
[1770579756657,0.0012,2119.6,2119.2,0.95244894]
[1770579756833,0.0012,2119.7,2119.2,0.95244894]
[1770579757357,0.0012,2119.6,2119.2,0.95244894]
[1770579757564,0.0012,2119.6,2119.3,1.17963478]
[1770579762234,0.9301851,2119.3,2118.7,0.001]
[1770579762543,1.9990755,2119.2,2118.7,0.001]
[1770579762744,1.01692026,2119.1,2118.7,0.001]
[1770579762944,1.01715621,2119.0,2118.7,0.001]
[1770579763142,0.9313851,2119.1,2118.7,0.001]
[1770579763453,1.01836319,2119.0,2118.7,0.001]
[1770579763758,1.01716319,2118.9,2118.7,0.001]
[1770579763957,1.01716319,2118.8,2118.7,0.001]
[1770579764654,2.20161139,2119.1,2118.7,0.001]
[1770579764655,1.01826319,2119.0,2118.7,0.001]
[1770579764844,1.01716319,2118.9,2118.7,0.001]
[1770579765042,1.01716319,2118.8,2118.7,0.001]
[1770579765242,0.0012,2118.9,2118.7,0.001]
[1770579765672,1.01713314,2118.8,2118.7,0.001]
[1770579765969,1.0183333,2118.8,2118.7,0.001]
[1770579766141,0.0012,2118.8,2118.7,0.001]
[1770579766733,1.01827669,2118.8,2118.7,0.001]
[1770579767464,1.01707669,2118.8,2118.7,0.001]
[1770579768160,1.01707669,2118.9,2118.7,0.001]
[1770579768363,1.01707669,2118.8,2118.7,0.001]
[1770579772164,1.01827669,2118.8,2118.7,0.001]
[1770579774556,1.01707669,2118.8,2118.7,0.001]
[1770579775168,0.0011,2119.0,2118.7,0.001]
[1770579776866,0.95036996,2119.0,2118.7,0.001]
[1770579777561,0.95036996,2119.0,2118.9,0.001]
[1770579777763,0.95036996,2119.0,2118.7,0.001]
[1770579778081,0.0012,2118.9,2118.7,0.001]
[1770579781979,0.95036996,2119.0,2118.7,0.001]
[1770579782149,0.0012,2118.9,2118.7,0.001]
[1770579782792,0.0011,2119.2,2118.8,0.97387369]
[1770579782952,0.0034,2119.2,2118.8,0.97387369]
[1770579783478,0.0034,2119.2,2118.7,0.97487369]
[1770579783974,0.94926996,2119.0,2118.7,0.001]
[1770579784178,1.0012401,2119.0,2118.6,0.001]
[1770579784356,1.0012401,2119.0,2118.2,0.001]
[1770579784357,1.0012401,2118.7,2118.2,0.001]
[1770579784548,0.94926996,2118.5,2118.2,0.001]
[1770579785079,0.94926996,2118.5,2118.2,2.15507762]
[1770579785080,0.0023,2118.5,2118.2,2.15507762]
[1770579785651,0.0023,2118.5,2118.2,0.97487369]
[1770579786083,0.94926996,2118.9,2118.2,0.001]
[1770579786084,0.0023,2118.4,2118.2,0.001]
[1770579786293,1.0012401,2118.6,2118.2,0.001]
[1770579786448,0.0023,2118.5,2118.2,0.001]
[1770579787187,1.01648679,2118.4,2118.2,0.001]
[1770579787371,0.0023,2118.5,2118.2,0.001]
[1770579787568,1.01644839,2118.4,2118.2,0.001]
[1770579787768,0.0023,2118.5,2118.2,0.001]
[1770579788104,1.01644795,2118.4,2118.2,0.001]
[1770579788297,0.0023,2118.5,2118.2,0.001]
[1770579788489,1.01650974,2118.4,2118.2,0.001]
[1770579788680,0.0023,2118.5,2118.2,0.001]
[1770579788879,1.01650984,2118.4,2118.2,0.001]
[1770579789080,0.0023,2118.5,2118.2,0.001]
[1770579789264,1.01664633,2118.4,2118.2,0.001]
[1770579789477,0.0023,2118.5,2118.2,0.001]
[1770579789677,0.0011,2118.3,2118.2,0.001]
[1770579792010,0.0034,2118.3,2118.2,0.001]
[1770579792300,1.02113491,2118.3,2118.2,0.001]
[1770579793090,0.0011,2118.5,2118.2,0.001]
[1770579794982,0.0011,2118.5,2118.2,0.98910651]
[1770579795182,0.0011,2118.5,2118.2,0.001]
[1770579800495,0.0011,2118.5,2118.2,0.90956646]
[1770579801424,0.0011,2118.5,2118.4,0.001]
[1770579805216,1.01890555,2118.5,2118.4,0.001]
[1770579806918,3.7166722,2119.2,2118.4,0.90956646]
[1770579807219,0.0011,2119.2,2118.6,0.90856646]
[1770579808417,0.0011,2119.2,2118.5,1.18008024]
[1770579808604,0.0011,2119.2,2118.5,2.0886467]
[1770579809722,0.0011,2119.2,2118.6,0.90856646]
[1770579810422,0.92891769,2119.2,2118.4,5.62990828]
[1770579811325,0.92891769,2119.2,2118.5,0.90856646]
[1770579813145,0.92781769,2119.1,2118.5,1.18004478]
[1770579813640,0.0011,2119.0,2118.5,1.18004478]
[1770579814839,0.92891769,2119.0,2118.5,1.18004478]
[1770579815609,0.0011,2119.2,2118.5,1.18004478]
[1770579815610,0.0011,2119.2,2118.9,0.90856646]
[1770579815836,0.0011,2119.2,2118.6,6.12684113]
[1770579816036,0.0011,2119.2,2118.7,0.90856646]
[1770579817243,0.0011,2119.2,2118.8,2.08847961]
[1770579817648,0.0011,2119.2,2118.9,0.90856646]
[1770579818730,0.0011,2119.4,2119.1,0.90856646]
[1770579819235,0.0011,2119.8,2119.2,2.0882569]
[1770579819448,1.01598658,2119.7,2119.3,0.90856646]
[1770579819623,0.0011,2119.8,2119.3,0.90856646]
[1770579819825,1.01596482,2119.7,2119.3,0.90856646]
[1770579820048,0.0011,2119.8,2119.3,0.90856646]
[1770579820230,1.01538626,2119.7,2119.3,0.90856646]
[1770579820550,0.0011,2119.8,2119.2,1.17969044]
[1770579820733,1.01539672,2119.7,2119.2,1.17969044]
[1770579820928,0.0011,2119.8,2119.2,1.17969044]
[1770579821151,1.01540685,2119.7,2119.2,2.0882569]
[1770579821332,0.0011,2119.8,2119.2,2.0882569]
[1770579821528,1.01497433,2119.7,2119.2,2.0882569]
[1770579821741,0.0011,2119.8,2119.2,2.0882569]
[1770579821933,0.0011,2119.8,2118.9,1.17981079]
[1770579821934,0.92781769,2119.5,2118.9,1.17981079]
[1770579822132,1.01497955,2119.4,2119.0,1.1797991]
[1770579822341,1.94279724,2119.4,2119.0,1.1797991]
[1770579822660,0.92781769,2119.6,2119.0,1.1797991]
[1770579822822,1.01498708,2119.5,2119.1,1.17974318]
[1770579823026,0.05197014,2119.7,2119.1,1.17970955]
[1770579823349,1.01498637,2119.6,2119.1,1.17970955]
[1770579823531,0.05197014,2119.7,2119.0,4.71913222]
[1770579823532,1.01498637,2119.5,2119.0,4.71913222]
[1770579823733,2.15921152,2119.7,2119.0,4.71913222]
[1770579823951,1.01488379,2119.6,2119.0,4.71913222]
[1770579824155,1.01488379,2119.5,2119.0,4.71913222]
[1770579824351,2.15920496,2119.7,2119.0,4.71913222]
[1770579824554,1.0148218,2119.6,2119.0,4.71913222]
[1770579824760,1.0148218,2119.5,2119.0,1.17980179]
[1770579824977,2.15920496,2119.7,2119.1,0.001]
[1770579825260,0.0011,2119.4,2119.1,0.001]
[1770579828863,0.0011,2119.4,2118.9,0.001]
[1770579828864,0.96100215,2119.1,2118.9,0.001]
[1770579829036,0.0011,2119.4,2119.0,0.90379514]
[1770579829235,1.01527749,2119.3,2119.1,5.21623915]
[1770579829456,0.0011,2119.4,2119.2,0.90379514]
[1770579829658,0.0011,2119.4,2119.3,1.17963478]
[1770579829840,0.0011,2119.8,2119.4,0.90379514]
[1770579832268,0.0011,2119.8,2119.5,1.17952347]
[1770579832655,0.0011,2119.8,2119.5,2.08331861]
[1770579832859,0.0011,2119.8,2119.6,0.90379514]
[1770579833044,0.0011,2120.0,2119.6,0.90379514]
[1770579834465,0.0011,2120.0,2119.7,1.17941218]
[1770579835046,0.96210215,2120.0,2119.3,4.47761082]
[1770579835248,0.96210215,2120.0,2119.4,1.1795773]
[1770579835578,0.05197014,2119.8,2119.3,3.298]
[1770579835742,1.01481611,2119.7,2119.3,4.47762923]
[1770579835944,0.96100215,2119.8,2119.3,4.47762923]
[1770579836149,0.96100215,2119.8,2119.2,1.17966637]
[1770579836150,1.01482097,2119.7,2119.2,1.17966637]
[1770579836356,0.96100215,2119.8,2119.3,1.17963282]
[1770579836638,1.01519031,2119.7,2119.1,2.08354125]
[1770579836842,2.14139307,2120.0,2119.2,0.90379514]
[1770579837074,1.01518883,2119.9,2119.2,0.90379514]
[1770579837247,1.01518883,2119.8,2119.2,0.90379514]
[1770579837569,1.01518883,2119.7,2119.2,0.90379514]
[1770579837742,2.14139307,2120.0,2119.2,0.90379514]
[1770579837942,1.01529862,2119.9,2119.2,0.90379514]
[1770579838182,1.01529862,2119.8,2119.2,0.90379514]
[1770579838361,1.01529862,2119.7,2119.2,0.90379514]
[1770579838557,0.96100215,2119.9,2119.3,1.17963478]
[1770579838774,1.01537917,2119.8,2119.6,0.001]
[1770579838963,1.01537917,2119.7,2119.6,0.001]
[1770579843049,0.0011,2119.8,2119.6,0.001]
[1770579848580,0.0011,2119.8,2119.6,0.90479514]
[1770579849191,0.0011,2119.8,2119.6,0.001]
[1770579849389,0.96210215,2119.8,2119.6,0.001]
[1770579850797,0.0011,2119.8,2119.6,0.001]
[1770579853686,0.96210215,2119.8,2119.6,0.001]
[1770579854082,1.01407229,2120.0,2119.6,0.001]
[1770579855197,1.01781259,2119.9,2119.6,0.001]
[1770579855415,2.00491939,2119.8,2119.6,0.001]
[1770579855578,2.00491939,2119.7,2119.4,0.001]
[1770579855779,1.01781259,2119.6,2119.4,0.001]
[1770579856003,1.01781259,2119.5,2119.4,0.001]
[1770579856204,0.9871068,2119.7,2119.4,0.001]
[1770579856810,1.01812637,2119.6,2119.4,0.001]
[1770579857417,0.9871068,2119.7,2119.4,0.001]
[1770579857715,1.01829723,2119.6,2119.4,0.001]
[1770579858022,1.01829723,2119.5,2119.4,0.001]
[1770579858203,0.9871068,2119.8,2119.4,0.001]
[1770579862497,0.9882068,2120.0,2119.4,0.001]
[1770579862715,0.9871068,2119.9,2119.4,0.001]
[1770579863423,0.0011,2120.0,2119.4,0.9366662]
[1770579863592,0.0011,2120.0,2119.6,0.001]
[1770579863796,0.0011,2119.6,2119.4,0.9366662]
[1770579864520,0.0011,2119.6,2119.4,2.11619601]
[1770579865320,0.0011,2119.6,2119.4,1.18052981]
[1770579866518,0.0011,2119.6,2119.4,0.001]
[1770579869223,0.0011,2119.6,2119.4,1.18057912]
[1770579871324,0.9882068,2119.6,2119.1,1.17974611]
[1770579871519,0.0011,2119.6,2119.1,1.17974611]
[1770579871717,0.0011,2119.6,2119.1,6.39664069]
[1770579872027,0.0011,2119.8,2119.3,5.21689458]
[1770579873019,0.0011,2119.8,2119.4,0.9356662]
[1770579873236,0.0011,2119.8,2119.5,1.17952347]
[1770579873447,0.0011,2119.8,2119.5,2.11518967]
[1770579875735,0.0011,2119.8,2119.5,2.11618967]
[1770579875908,0.0011,2119.6,2119.5,2.11618967]
[1770579882236,0.0011,2120.0,2119.5,2.11618967]
[1770579883624,0.0011,2120.0,2119.6,0.9356662]
[1770579885255,0.0011,2120.0,2119.5,1.18052347]
[1770579887260,0.0011,2120.0,2119.5,2.13345183]
[1770579887630,0.0011,2120.0,2119.7,0.001]
[1770579887954,0.0011,2119.8,2119.7,0.001]
[1770579894161,0.00443497,2119.8,2119.7,0.001]
[1770579896166,0.0011,2120.0,2119.8,0.95292836]
[1770579896346,0.0011,2120.0,2119.7,5.21576945]
[1770579896347,0.01170911,2120.5,2120.0,0.95292836]
[1770579896658,4.7666462,2121.1,2120.4,0.95292836]
[1770579896659,0.94533152,2121.1,2120.4,0.95292836]
[1770579898042,0.94533152,2121.1,2120.5,1.17896722]
[1770579898238,0.94533152,2121.2,2120.6,0.95292836]
[1770579898567,0.94533152,2121.2,2120.5,1.17896722]
[1770579898860,0.94533152,2121.2,2120.5,2.13189558]
[1770579899541,2.12383087,2121.4,2120.6,0.95292836]
[1770579899867,2.12369604,2121.6,2120.8,0.95292836]
[1770579900051,0.94533152,2121.6,2120.9,2.13167323]
[1770579900251,0.94533152,2121.6,2121.0,0.95292836]
[1770579900866,0.94533152,2121.8,2121.0,0.95292836]
[1770579901045,1.18118957,2121.9,2121.2,0.95292836]
[1770579901361,2.12652318,2121.9,2121.2,0.95292836]
[1770579902271,0.94533152,2121.8,2121.2,0.95292836]
[1770579902579,0.94533152,2121.5,2121.0,1.17868792]
[1770579902946,0.94533152,2121.7,2121.0,2.13157967]
[1770579903442,0.99730166,2121.6,2121.0,1.1786726]
[1770579903646,0.99730166,2121.6,2121.0,1.16696349]
[1770579904083,0.99730166,2121.6,2120.9,1.17870385]
[1770579904280,2.12374302,2121.5,2120.9,1.17870385]
[1770579904701,1.1784115,2121.5,2120.9,2.13163221]
[1770579904970,0.94533152,2121.5,2120.9,1.17870385]
[1770579905467,1.17839419,2121.6,2120.9,2.13163221]
[1770579905858,2.12372571,2121.6,2120.9,2.13163221]
[1770579906064,0.94533152,2121.5,2120.9,1.17870385]
[1770579907158,0.94533152,2121.5,2120.9,2.13163221]
[1770579907368,0.003,2121.9,2121.5,0.95292836]
[1770579907546,0.94533152,2121.8,2121.0,0.95292836]
[1770579907873,0.94533152,2121.8,2121.1,3.295]
[1770579908078,0.94533152,2121.8,2121.1,4.24792836]
[1770579908281,0.003,2121.9,2121.4,6.16769781]
[1770579908455,0.003,2121.9,2121.5,0.95292836]
[1770579908652,0.003,2121.9,2121.7,0.95292836]
[1770579908859,0.32023693,2122.1,2121.7,0.95292836]
[1770579909443,0.32023693,2122.1,2121.7,1.1782975]
[1770579909892,0.32023693,2122.1,2121.6,5.42624811]
[1770579910254,0.32023693,2122.1,2121.8,0.95292836]
[1770579911270,0.32023693,2122.1,2121.9,1.17818935]
[1770579911476,0.32023693,2122.1,2121.8,2.13114293]
[1770579912082,0.32023693,2122.1,2121.9,0.95292836]
[1770579913368,0.32023693,2122.1,2122.0,0.95292836]
[1770579914573,0.32023693,2122.1,2121.8,1.17824115]
[1770579915295,0.32023693,2122.1,2121.8,0.99514092]
[1770579917204,0.003,2122.2,2121.9,0.99514092]
[1770579917408,0.003,2122.2,2122.0,2.17327475]
[1770579918707,0.003,2122.2,2122.1,3.294]
[1770579919004,0.003,2122.2,2121.8,4.47222389]
[1770579919508,0.003,2122.2,2121.9,1.17818461]
[1770579919673,0.003,2122.2,2122.0,0.99514092]
[1770579920306,0.003,2122.4,2122.1,0.99514092]
[1770579920828,0.003,2122.4,2122.0,5.21476945]
[1770579920829,1.17767767,2122.9,2122.3,0.99514092]
[1770579920991,2.16613135,2122.9,2122.3,3.294]
[1770579923198,0.98845368,2122.8,2122.3,3.294]
[1770579924102,1.17774532,2122.7,2122.3,3.294]
[1770579925212,1.1776774,2122.9,2122.3,3.294]
[1770579925606,2.16613108,2122.9,2122.3,3.294]
[1770579926619,1.1776774,2122.9,2122.3,3.294]
[1770579927027,2.16613108,2122.9,2122.5,0.001]
[1770579927196,0.0011,2122.7,2122.5,0.001]
[1770579929427,0.98955368,2122.7,2122.5,0.001]
[1770579929834,0.98845368,2122.2,2121.4,0.99514092]
[1770579930036,0.05197014,2122.3,2121.2,4.71417702]
[1770579930037,1.04042382,2122.0,2121.2,1.17855187]
[1770579930211,0.98845368,2122.0,2121.2,1.17855187]
[1770579930543,0.05197014,2122.3,2121.3,0.99514092]
[1770579930544,1.17818935,2121.9,2121.3,0.99514092]
[1770579930702,1.1780228,2122.2,2121.3,0.99514092]
[1770579931038,1.04042382,2122.0,2121.1,0.001]
[1770579931240,1.01281718,2121.9,2121.2,1.17857443]
[1770579931602,1.01281718,2121.9,2121.2,2.17371535]
[1770579932345,2.19106192,2121.9,2121.2,2.17371535]
[1770579932510,1.17824474,2121.9,2121.2,1.17857443]
[1770579932710,2.1666329,2122.0,2121.2,1.17857443]
[1770579933041,4.71214375,2122.2,2121.3,0.99514092]
[1770579933225,2.19146981,2122.1,2121.3,0.99514092]
[1770579933426,1.01335267,2122.0,2121.3,0.99514092]
[1770579933618,1.17811714,2122.1,2121.3,0.99514092]
[1770579933939,1.01330373,2122.0,2121.3,0.99514092]
[1770579934245,1.17811714,2122.1,2121.3,0.99514092]
[1770579934424,1.01362109,2122.0,2121.3,0.99514092]
[1770579934623,4.71214375,2122.2,2121.4,1.17846705]
[1770579934827,1.01364482,2122.1,2121.4,1.17846705]
[1770579935130,1.01364482,2122.0,2121.5,0.99514092]
[1770579935330,1.17789372,2122.5,2121.7,0.99514092]
[1770579935531,1.01384534,2122.4,2121.7,0.99514092]
[1770579935735,1.17789372,2122.5,2121.7,0.99514092]
[1770579935915,1.01377493,2122.4,2121.7,0.99514092]
[1770579936115,1.17789372,2122.5,2121.7,0.99514092]
[1770579936335,1.01424229,2122.4,2121.7,0.99514092]
[1770579936533,1.17789372,2122.5,2121.7,0.99514092]
[1770579936736,2.19216686,2122.4,2121.8,1.17824488]
[1770579936946,1.17792447,2122.4,2121.8,1.17824488]
[1770579937243,1.0148085,2122.3,2121.8,1.17824488]
[1770579937444,1.17793784,2122.4,2121.7,2.17340086]
[1770579937747,1.01480862,2122.3,2121.7,1.17825994]
[1770579937923,2.16639152,2122.4,2121.6,4.47131562]
[1770579938127,1.01484309,2122.3,2121.6,4.47131562]
[1770579938327,2.16639152,2122.4,2121.6,4.47131562]
[1770579938646,1.01509401,2122.3,2121.7,1.17829927]
[1770579938824,2.16639152,2122.4,2121.7,1.17829927]
[1770579939027,1.01508595,2122.3,2121.7,1.17829927]
[1770579939240,2.16639152,2122.4,2121.7,1.17829927]
[1770579939442,0.98845368,2122.2,2121.6,3.293]
[1770579939644,1.01509831,2122.1,2121.6,3.293]
[1770579939944,1.01509831,2122.1,2121.9,0.001]
[1770579940822,1.01509831,2122.1,2121.6,0.001]
[1770579940823,2.16658781,2122.0,2121.6,0.001]
[1770579942344,2.00354912,2121.9,2121.1,3.294]
[1770579942551,1.01509544,2121.8,2121.1,3.294]
[1770579942733,1.01509544,2121.8,2121.1,4.47262938]
[1770579943832,2.00354912,2121.8,2121.1,3.294]
[1770579944177,0.98845368,2121.6,2121.1,0.001]
[1770579944343,1.01509544,2121.5,2121.1,0.001]
[1770579944649,0.98845368,2121.6,2121.1,0.001]
[1770579944830,1.01467099,2121.5,2121.1,0.001]
[1770579945034,0.98845368,2121.6,2121.1,0.001]
[1770579945231,1.01425207,2121.5,2121.1,0.001]
[1770579945453,1.17830041,2121.7,2121.1,0.001]
[1770579945639,1.01425429,2121.6,2121.1,0.001]
[1770579945844,1.01425429,2121.5,2121.1,0.001]
[1770579946045,0.98013351,2121.6,2121.1,0.001]
[1770579946247,1.01388632,2121.5,2121.1,0.001]
[1770579946442,0.98013351,2121.6,2121.1,0.001]
[1770579946633,0.98013351,2121.4,2121.1,0.001]
[1770579946839,1.23027055,2121.7,2120.8,0.001]
[1770579946840,0.98013351,2121.3,2120.8,0.001]
[1770579947355,1.01353412,2121.2,2120.8,0.001]
[1770579947559,0.98013351,2121.6,2120.8,0.001]
[1770579947756,0.98013351,2121.2,2120.8,0.001]
[1770579948051,0.98013351,2121.0,2120.8,0.001]
[1770579948259,0.98013351,2121.0,2120.2,2.0816123]
[1770579948634,0.98013351,2121.0,2120.2,2.08161041]
[1770579948945,0.98013351,2121.0,2120.2,2.08160371]
[1770579949752,1.03210365,2121.0,2120.2,2.08160371]
[1770579950728,1.17874487,2120.9,2120.2,2.08160371]
[1770579951931,2.15887838,2120.9,2120.0,1.17919822]
[1770579952261,2.15887838,2120.9,2120.1,1.17918033]
[1770579952564,2.15887838,2120.9,2120.1,2.08166392]
[1770579953533,2.15887838,2120.9,2120.4,0.001]
[1770579953940,4.71497948,2121.1,2120.4,0.001]
[1770579953941,0.98013351,2121.5,2120.4,0.90348359]
[1770579954138,1.010915,2121.4,2120.4,0.90348359]
[1770579954337,1.010915,2121.3,2120.4,0.90348359]
[1770579954583,0.98013351,2121.5,2120.4,0.90348359]
[1770579954855,1.1785226,2121.3,2120.5,6.38790797]
[1770579955061,1.1785226,2121.3,2120.6,0.90248359]
[1770579958146,2.1903052,2121.2,2120.6,0.90248359]
[1770579958474,1.17861881,2121.2,2120.6,0.90248359]
[1770579958962,0.98013351,2121.9,2121.0,0.90248359]
[1770579959175,1.23010397,2122.0,2121.0,0.90248359]
[1770579959176,1.99164383,2121.8,2121.0,0.90248359]
[1770579959339,1.01151032,2121.7,2121.0,0.90248359]
[1770579960968,1.17835595,2121.6,2121.0,0.90248359]
[1770579961459,1.17835595,2121.6,2121.0,2.08116789]
[1770579961865,2.15839763,2121.8,2121.1,0.90248359]
[1770579962066,1.17807831,2122.1,2121.1,0.90248359]
[1770579962272,1.01195992,2122.0,2121.1,0.90248359]
[1770579962437,1.1780365,2122.2,2121.1,0.90248359]
[1770579962765,1.01198738,2122.1,2121.1,0.90248359]
[1770579962951,1.01198738,2122.0,2121.3,0.90248359]
[1770579963150,1.17810895,2122.1,2121.3,0.90248359]
[1770579963340,1.01196418,2122.0,2121.3,0.90248359]
[1770579963538,1.17803932,2122.2,2121.3,0.90248359]
[1770579964166,2.15925612,2122.3,2121.3,0.90248359]
[1770579964368,1.01184194,2122.2,2121.3,0.90248359]
[1770579964666,0.98013351,2122.2,2121.3,0.90248359]
[1770579964846,1.99201782,2122.1,2121.3,0.90248359]
[1770579965042,1.17813383,2122.0,2121.3,2.08097996]
[1770579965366,2.21023748,2122.0,2121.2,1.17854922]
[1770579965571,1.23010397,2122.0,2121.2,1.17854922]